fUSD/lending_fUSD_20251112
["ID","MTS","AMOUNT","RATE_DAILY","PERIOD"]
[393777421,1762975845709,-151.0,0.00040442,120]
[393777422,1762975845719,-151.0,0.00040442,120]
[393777423,1762975845728,-151.0,0.00040442,120]
[393777424,1762975845737,-204.735556,0.00040442,120]
[393777425,1762975845746,-151.0,0.00040442,120]
[393777426,1762975845755,-151.0,0.00040442,120]
[393777427,1762975845765,-151.0,0.00040442,120]
[393777428,1762975845774,-151.0,0.00040442,120]
[393777429,1762975845783,-151.0,0.00040442,120]
[393777430,1762975845792,-151.0,0.00040442,120]
[393777431,1762975845800,-215.627776,0.00040442,120]
[393777432,1762975845810,-151.0,0.00040442,120]
[393777433,1762975845819,-151.0,0.00040442,120]
[393777434,1762975845828,-153.938725,0.00040442,120]
[393777435,1762975845837,-153.101118,0.00040442,120]
[393777436,1762975845846,-151.0,0.00040442,120]
[393777437,1762975845855,-154.26487,0.00040442,120]
[393777438,1762975845865,-152.908875,0.00040442,120]
[393777439,1762975845874,-151.000008,0.00040442,120]
[393777440,1762975845884,-300.0,0.00040443,2]
[393777441,1762975845894,-316.51060699,0.00040443,2]
[393777442,1762975845903,-218.49708367,0.00040448,120]
[393777443,1762975845915,-218.49,0.00040448,120]
[393777444,1762975845925,-168.05415576,0.00040448,120]
[393777445,1762975845934,-168.05415576,0.00040448,120]
[393777446,1762975845944,-168.05,0.00040448,120]
[393777447,1762975845953,-168.05415576,0.00040448,120]
[393777448,1762975845962,-168.05415576,0.00040448,120]
[393777449,1762975845973,-168.05415576,0.00040448,120]
[393777450,1762975845982,-168.05415576,0.00040448,120]
[393777451,1762975845992,-168.05415576,0.00040448,120]
[393777452,1762975846001,-168.05415576,0.00040448,120]
[393777453,1762975846011,-168.05,0.00040448,120]
[393777454,1762975846020,-154.37668499,0.00040448,120]
[393777455,1762975846030,-154.37668499,0.00040448,120]
[393777456,1762975846039,-154.37668499,0.00040448,120]
[393777457,1762975846048,-154.37668499,0.00040448,120]
[393777458,1762975846058,-154.37668499,0.00040448,120]
[393777459,1762975846067,-154.37668499,0.00040448,120]
[393777460,1762975846077,-154.37668499,0.00040448,120]
[393777461,1762975846087,-154.37668499,0.00040448,120]
[393777462,1762975846096,-154.37668499,0.00040448,120]
[393777463,1762975846106,-154.37668499,0.00040448,120]
[393777464,1762975846116,-154.37668499,0.00040448,120]
[393777465,1762975846125,-154.37668499,0.00040448,120]
[393777466,1762975846134,-154.37668499,0.00040448,120]
[393777467,1762975846144,-154.37668499,0.00040448,120]
[393777468,1762975846153,-154.37668499,0.00040448,120]
[393777469,1762975846164,-154.37668499,0.00040448,120]
[393777470,1762975846174,-154.37,0.00040448,120]
[393777471,1762975846183,-306.18042522,0.00040448,120]
[393777472,1762975846193,-306.18042522,0.00040448,120]
[393777473,1762975846203,-306.18042522,0.00040448,120]
[393777474,1762975846212,-306.18042522,0.00040448,120]
[393777475,1762975846223,-306.18042522,0.00040448,120]
[393777476,1762975846232,-306.18042522,0.00040448,120]
[393777477,1762975846241,-306.18042522,0.00040448,120]
[393777478,1762975846251,-306.18042522,0.00040448,120]
[393777479,1762975846260,-306.18042522,0.00040448,120]
[393777480,1762975846270,-306.18042522,0.00040448,120]
[393777481,1762975846279,-306.18042522,0.00040448,120]
[393777482,1762975846288,-306.18042522,0.00040448,120]
[393777483,1762975846298,-306.18042522,0.00040448,120]
[393777484,1762975846307,-306.18042522,0.00040448,120]
[393777485,1762975846316,-306.18042522,0.00040448,120]
[393777486,1762975846325,-306.18042522,0.00040448,120]
[393777487,1762975846335,-306.18042522,0.00040448,120]
[393777488,1762975846345,-306.18042522,0.00040448,120]
[393777489,1762975846354,-306.18042522,0.00040448,120]
[393777490,1762975846364,-306.18,0.00040448,120]
[393777491,1762975846373,-232.9395222,0.00040448,28]
[393777492,1762975846382,-1038.84375269,0.00040448,2]
[393777493,1762975846391,-18655.74231472,0.00040448,2]
[393777494,1762975846401,-300.0,0.00040455,2]
[393777495,1762975846411,-500.0,0.00040458,15]
[393777496,1762975846420,-500.0,0.00040458,15]
[393777497,1762975846430,-500.0,0.00040458,15]
[393777498,1762975846440,-500.0,0.00040458,15]
[393777499,1762975846449,-500.0,0.00040458,15]
[393777500,1762975846458,-500.0,0.00040458,15]
[393777502,1762975846467,-500.0,0.00040458,15]
[393777504,1762975846476,-500.0,0.00040458,15]
[393777505,1762975846485,-500.0,0.00040458,15]
[393777506,1762975846494,-500.0,0.00040458,15]
[393777507,1762975846504,-500.0,0.00040458,15]
[393777508,1762975846513,-500.0,0.00040458,15]
[393777509,1762975846522,-500.0,0.00040458,15]
[393777510,1762975846531,-500.0,0.00040458,15]
[393777511,1762975846542,-500.0,0.00040458,15]
[393777512,1762975846555,-500.0,0.00040458,15]
[393777513,1762975846564,-1019.5405,0.00040467,2]
[393777514,1762975846573,-150.0,0.00040468,2]
[393777515,1762975846582,-606.43117955,0.00040468,2]
[393777516,1762975846593,-150.0,0.00040468,2]
[393777517,1762975846603,-438.25494471,0.00040468,2]
[393777518,1762975846612,-300.0,0.0004047,2]
[393777519,1762975846622,-300.0,0.00040491,2]
[393777520,1762975846631,-300.0,0.00040499,2]
[393777521,1762975846640,-250.0,0.000405,14]
[393777522,1762975846650,-250.0,0.000405,14]
[393777523,1762975846662,-250.0,0.000405,14]
[393777524,1762975846671,-250.0,0.000405,14]
[393777525,1762975846681,-250.0,0.000405,14]
[393777526,1762975846690,-250.0,0.000405,14]
[393777527,1762975846700,-250.0,0.000405,14]
[393777528,1762975846710,-250.0,0.000405,14]
[393777529,1762975846719,-250.0,0.000405,14]
[393777530,1762975846728,-250.0,0.000405,14]
[393777531,1762975846737,-250.0,0.000405,14]
[393777532,1762975846746,-250.0,0.000405,14]
[393777533,1762975846755,-250.0,0.000405,14]
[393777534,1762975846764,-250.0,0.000405,14]
[393777535,1762975846773,-250.0,0.000405,14]
[393777536,1762975846782,-250.0,0.000405,14]
[393777537,1762975846791,-250.0,0.000405,14]
[393777538,1762975846801,-250.0,0.000405,14]
[393777539,1762975846810,-250.0,0.000405,14]
[393777540,1762975846819,-250.0,0.000405,14]
[393777541,1762975846828,-250.0,0.000405,14]
[393777542,1762975846838,-250.0,0.000405,14]
[393777543,1762975846847,-250.0,0.000405,14]
[393777544,1762975846855,-250.0,0.000405,14]
[393777545,1762975846864,-250.0,0.000405,14]
[393777546,1762975846873,-250.0,0.000405,14]
[393777547,1762975846883,-250.0,0.000405,14]
[393777548,1762975846892,-250.0,0.000405,14]
[393777549,1762975846901,-250.0,0.000405,14]
[393777550,1762975846913,-250.0,0.000405,14]
[393777551,1762975846922,-250.0,0.000405,14]
[393777552,1762975846931,-250.0,0.000405,14]
[393777553,1762975847094,-250.0,0.000405,14]
[393777554,1762975847104,-250.0,0.000405,14]
[393777555,1762975847113,-274.8,0.000405,14]
[393777556,1762975847122,-150.0,0.000405,60]
[393777557,1762975847131,-11788.06,0.000405,14]
[393777558,1762975847141,-700.0,0.000405,14]
[393777559,1762975847150,-300.0,0.000405,2]
[393777560,1762975847161,-300.0,0.00040504,2]
[393777561,1762975847171,-300.0,0.00040521,2]
[393777562,1762975847181,-166.66,0.00040529,2]
[393777563,1762975847190,-300.0,0.00040531,2]
[393777564,1762975847199,-300.0,0.00040536,2]
[393777565,1762975847209,-1731.56618599,0.00040538,7]
[393777566,1762975847218,-300.0,0.0004054,2]
[393777567,1762975847227,-300.0,0.00040543,2]
[393777568,1762975847237,-151.0,0.00040545,14]
[393777569,1762975847248,-300.0,0.00040547,10]
[393777570,1762975847258,-300.0,0.00040547,10]
[393777571,1762975847267,-115971.26818118,0.00040547,29]
[393777572,1762975847277,-148760.18618512,0.00040548,30]
[393777573,1762975847287,-148760.18618512,0.00040548,30]
[393777574,1762975847296,-148760.18618512,0.00040548,30]
[393777575,1762975847306,-148760.18618512,0.00040548,30]
[393777576,1762975847315,-1953923.30585372,0.00040548,7]
[393777579,1762975847330,-2308664.1979309,0.00040548,7]
[393777581,1762975847339,-28511.34641003,0.00040548,2]
[393777583,1762975847348,-6000.0,0.00040548,2]
[393777585,1762975847357,-49980.93395668,0.00040548,2]
[393777587,1762975847367,-572.64098613,0.00040548,2]
[393777588,1762975847376,-150.0,0.00040548,2]
[393777590,1762975847385,-232.91085092,0.00040548,14]
[393777592,1762975847395,-7896.76028451,0.00040548,2]
[393777594,1762975847404,-1589.43398431,0.00040548,2]
[393777596,1762975847416,-636.86880675,0.00040548,2]
[393777598,1762975847426,-218.33267664,0.00040548,2]
[393777600,1762975847435,-194.8867792,0.00040548,10]
[393777603,1762975847445,-231.59992991,0.00040548,15]
[393777605,1762975847454,-1084.46714831,0.00040548,2]
[393777607,1762975847463,-2500.0,0.00040548,2]
[393777609,1762975847472,-588.73408813,0.00040548,2]
[393777611,1762975847482,-347.79421693,0.00040548,2]
[393777613,1762975847491,-1100.0,0.00040548,2]
[393777614,1762975847501,-927.35306531,0.00040548,2]
[393777616,1762975847511,-15839.57669336,0.00040548,2]
[393777618,1762975847520,-489.61333164,0.00040548,2]
[393777620,1762975847529,-1613.79882032,0.00040548,2]
[393777622,1762975847540,-557.45985835,0.00040548,2]
[393777624,1762975847552,-5087.69888474,0.00040548,2]
[393777626,1762975847561,-1028.66175923,0.00040548,2]
[393777628,1762975847570,-280.93104887,0.00040548,10]
[393777630,1762975847580,-370.90360002,0.00040548,2]
[393777633,1762975847591,-2240.22933884,0.00040548,2]
[393777635,1762975847601,-275.0,0.00040548,14]
[393777637,1762975847611,-15040.22019135,0.00040548,2]
[393777639,1762975847621,-23429.65040784,0.00040548,2]
[393777641,1762975847631,-1867.5360753,0.00040548,2]
[393777643,1762975847640,-640.02759935,0.00040548,2]
[393777645,1762975847650,-1136.98887893,0.00040548,2]
[393777647,1762975847661,-150.0,0.00040548,14]
[393777649,1762975847670,-260.62684709,0.00040548,2]
[393777651,1762975847679,-4333062.58452577,0.00040548,7]
[393777653,1762975847691,-101100.0,0.00040548,7]
[393777668,1762975847821,-552.89447495,0.00038165,15]
[393777670,1762975847830,-1208.04359005,0.00040448,15]
[393777674,1762975847856,-429.10600323,0.00040448,15]
[393777676,1762975847867,-296.203049,0.00040448,15]
[393777678,1762975847878,-332.4,0.00040448,15]
[393777711,1762975848183,-449.54020494,0.0004044,2]
[393777713,1762975848193,-25.28979506,0.00040448,15]
[393777715,1762975848204,-1013.0,0.00040448,15]
[393778800,1762975869380,-574.0,0.00038393,2]
[393778801,1762975869390,-1201.31164889,0.00040448,15]
[393778802,1762975872267,200.0,0.00040548,30]
[393778803,1762975872917,207.4,0.00040548,30]
[393778804,1762975874013,215.0738,0.00040548,30]
[393778805,1762975874659,223.0315306,0.00040548,30]
[393778806,1762975875310,231.28369723,0.00040548,30]
[393778807,1762975875944,239.84119403,0.00040548,30]
[393778808,1762975876547,248.71531821,0.00040548,30]
[393778809,1762975877144,257.91778498,0.00040548,30]
[393778810,1762975877787,267.46074303,0.00040548,30]
[393778811,1762975878562,277.35679052,0.00040548,30]
[393778812,1762975879190,287.61899177,0.00040548,30]
[393778814,1762975884839,151.0,0.00040548,60]
[393778815,1762975885483,151.0,0.00040548,60]
[393778816,1762975886142,151.0,0.00040548,60]
[393778868,1762975940903,-300.0,0.00018072,2]
[393778869,1762975987463,-1200.0,0.00018072,2]
[393778870,1762976067747,150.0,0.000405,120]
[393778873,1762976222164,-1200.0,0.00018072,2]
[393778874,1762976222188,-300.0,0.00018072,2]
[393778875,1762976225230,300.0,0.000405,60]
[393778876,1762976225953,311.1,0.000405,60]
[393778877,1762976226448,322.6107,0.000405,60]
[393778878,1762976227260,334.5472959,0.000405,60]
[393778879,1762976227779,250.0,0.000405,60]
[393778880,1762976227858,346.92554585,0.000405,60]
[393778881,1762976228469,359.76179104,0.000405,60]
[393778882,1762976229166,373.07297731,0.000405,60]
[393778883,1762976229785,386.87667747,0.000405,60]
[393778884,1762976230424,401.19111454,0.000405,60]
[393778885,1762976231049,416.03518578,0.000405,60]
[393778886,1762976231668,416.03518578,0.000405,60]
[393778887,1762976236573,200.0,0.000405,30]
[393778888,1762976237404,200.0,0.000405,30]
[393778889,1762976243515,200.0,0.000405,60]
[393778890,1762976244221,207.4,0.000405,60]
[393778891,1762976244843,215.0738,0.000405,60]
[393778892,1762976245472,223.0315306,0.000405,60]
[393778893,1762976246173,231.28369723,0.000405,60]
[393778894,1762976246669,231.28369723,0.000405,60]
[393778898,1762976488691,696.97,0.00013699,2]
[393778902,1762976813137,-220.49273795,0.00018072,2]
[393778903,1762976917940,250.0,0.00017,2]
[393778905,1762976965961,-250.0,0.00018072,2]
[393778906,1762976965991,-184.0,0.00018072,2]
[393778909,1762977032146,-1.78389075,0.00018072,2]
[393778910,1762977032157,-300.0,0.00019,2]
[393778911,1762977032167,-501.0816036,0.0001986,2]
[393778912,1762977032177,-250.0,0.00019879,2]
[393778913,1762977032186,-38.10110581,0.00019879,2]
[393778914,1762977032199,-241.40615624,0.00019879,2]
[393778916,1762977032209,-276.1197232,0.00019879,2]
[393778917,1762977032367,-75.25776029,0.00019879,2]
[393778918,1762977032379,-500.0,0.00019989,2]
[393778919,1762977032389,-78.039383,0.00019989,2]
[393778920,1762977032401,-421.960617,0.00019989,2]
[393778921,1762977032410,-1200.0,0.00019998,2]
[393778922,1762977032422,-500.0,0.00019999,2]
[393778923,1762977032432,-263.19217509,0.00019999,2]
[393778924,1762977032447,-500.0,0.00019999,2]
[393778925,1762977032459,-218.23,0.00019999,2]
[393778926,1762977032469,-696.97,0.00020187,2]
[393778927,1762977032478,-218.23,0.00020273,2]
[393778928,1762977032487,-218.23,0.00020547,2]
[393778929,1762977032497,-218.23,0.00020821,2]
[393778930,1762977032506,-5018.18426,0.00020895,2]
[393778931,1762977032515,-350.0,0.00021,2]
[393778932,1762977032525,-218.27,0.00021095,2]
[393778934,1762977032535,-941.40081583,0.00021397,2]
[393778936,1762977032544,-151.0,0.00021526,2]
[393778938,1762977032553,-151.0,0.00021526,2]
[393778940,1762977032562,-151.0,0.00021526,2]
[393778942,1762977032572,-151.0,0.00021526,2]
[393778944,1762977032582,-151.0,0.00021526,2]
[393778946,1762977032591,-151.0,0.00021526,2]
[393778948,1762977032600,-151.0,0.00021526,2]
[393778950,1762977032610,-151.0,0.00021526,2]
[393778952,1762977032619,-151.0,0.00021526,2]
[393778954,1762977032629,-151.0,0.00021526,2]
[393778956,1762977032640,-151.0,0.00021526,2]
[393778958,1762977032650,-151.0,0.00021526,2]
[393778960,1762977032661,-151.0,0.00021526,2]
[393778962,1762977032670,-151.0,0.00021526,2]
[393778964,1762977032679,-151.0,0.00021526,2]
[393778966,1762977032689,-151.0,0.00021526,2]
[393778968,1762977032698,-151.0,0.00021526,2]
[393778970,1762977032709,-151.0,0.00021526,2]
[393778972,1762977032718,-151.0,0.00021526,2]
[393778974,1762977032728,-151.0,0.00021526,2]
[393778976,1762977032737,-500.0,0.00021737,2]
[393778978,1762977032748,-1117.0,0.00021776,2]
[393778980,1762977032758,-500.0,0.0002195,2]
[393778982,1762977032768,-500.0,0.0002195,2]
[393778984,1762977032777,-355.7670847,0.0002197,2]
[393778986,1762977032787,-293.34,0.00022201,2]
[393778988,1762977032796,-300.0,0.00022248,2]
[393778990,1762977032806,-500.0,0.000225,2]
[393778992,1762977032815,-500.0,0.00023199,2]
[393778994,1762977032827,-500.0,0.00024799,2]
[393778996,1762977032837,-151.88338379,0.00024899,2]
[393778998,1762977032847,-1326.9170905,0.00025411,2]
[393779000,1762977032856,-3617.23,0.00025786,2]
[393779002,1762977032865,-9999.99,0.00025786,2]
[393779004,1762977032874,-150.99,0.00025786,2]
[393779006,1762977032884,-1092.45,0.00025786,2]
[393779008,1762977032894,-299.99,0.00025786,12]
[393779010,1762977032903,-7510.12,0.00025786,2]
[393779012,1762977032917,-999.99,0.00025786,2]
[393779014,1762977032927,-150.99,0.00025786,2]
[393779016,1762977032938,-1000.0,0.00025804,2]
[393779018,1762977032947,-999.0,0.00026085,3]
[393779020,1762977032958,-250.0,0.00026263,2]
[393779022,1762977032967,-696.97,0.00026676,2]
[393779024,1762977032976,-33142.9,0.00027397,2]
[393779026,1762977032985,-1000.0,0.0002903,2]
[393779027,1762977032997,-478.56668374,0.00029109,2]
[393779028,1762977033007,-162.66019294,0.00029978,2]
[393779029,1762977033017,-447.22,0.00030532,2]
[393779030,1762977033028,-175.17,0.00031628,2]
[393779031,1762977033037,-280.08,0.00031973,2]
[393779032,1762977033047,-166.66,0.00031974,30]
[393779033,1762977033058,-934.56,0.00031989,120]
[393779034,1762977033069,-10319.22,0.00032078,2]
[393779035,1762977033276,-1000.0,0.00032256,2]
[393779036,1762977033286,-551.29,0.00032542,2]
[393779037,1762977033296,-166.66,0.00032647,30]
[393779038,1762977033305,-3000.0,0.00032656,2]
[393779039,1762977033325,-155.2930148,0.00032712,2]
[393779040,1762977033334,-425.75763158,0.00032712,15]
[393779041,1762977033344,-48612.57391801,0.00032762,3]
[393779042,1762977033358,-1250.37870014,0.00032762,3]
[393779043,1762977033371,-2850.0,0.00032762,3]
[393779044,1762977033383,-10514.52218664,0.00032762,3]
[393779045,1762977033396,-48101.89498721,0.00032762,3]
[393779046,1762977033406,-853.03525047,0.00032762,2]
[393779047,1762977033417,-1020.54048194,0.00032762,2]
[393779048,1762977033428,-483.99426759,0.00032762,2]
[393779049,1762977033438,-438.14165665,0.00032762,2]
[393779050,1762977033450,-1919.42834335,0.00032762,2]
[393779051,1762977033459,-2357.57,0.00032762,2]
[393779052,1762977033477,-2357.57,0.00032762,2]
[393779053,1762977033489,-7.3068617,0.00032762,2]
[393779054,1762977033507,-452.69433313,0.00032762,2]
[393779055,1762977033523,-1897.56880517,0.00032762,2]
[393779056,1762977033534,-500.0,0.00032771,2]
[393779057,1762977033544,-607.39,0.00032771,2]
[393779058,1762977033554,-444.04615585,0.00032772,2]
[393779059,1762977038120,-4913.03268255,0.00032772,2]
[393779060,1762977038174,-297.18518212,0.00032772,2]
[393779061,1762977038186,-971.60856542,0.00032772,2]
[393779062,1762977038228,-261.3759276,0.00032772,2]
[393779063,1762977038240,-364126.88042962,0.00032772,2]
[393779064,1762977038252,-1077.30901779,0.00032772,2]
[393779065,1762977038265,-1510.0,0.00032772,2]
[393779066,1762977038277,-37337.21988587,0.00032772,2]
[393779067,1762977038290,-34838.12375623,0.00032772,2]
[393779068,1762977038301,-1471.0953936,0.00032772,2]
[393779069,1762977038387,-23878.24300335,0.00032772,2]
[393779070,1762977038397,-150.0,0.00032812,2]
[393779071,1762977038407,-2000.0,0.00032812,2]
[393779072,1762977038422,-1938.1,0.0003298,120]
[393779073,1762977038434,-821.265,0.00033005,34]
[393779075,1762977038445,-696.97,0.00033165,2]
[393779077,1762977038455,-280.08,0.00033172,2]
[393779079,1762977038464,-166.66,0.00033321,30]
[393779081,1762977038474,-425.7576315,0.00033565,15]
[393779083,1762977038485,-504.0,0.00033671,2]
[393779085,1762977038495,-11132.9369792,0.00033946,3]
[393779087,1762977038504,-447.22,0.00033956,2]
[393779089,1762977038514,-166.66,0.00033994,30]
[393779091,1762977038524,-150.0,0.00034006,2]
[393779093,1762977038534,-150.0,0.00034006,120]
[393779095,1762977038544,-147.20983925,0.00034215,5]
[393779097,1762977038555,-352.79016075,0.00034215,5]
[393779099,1762977038566,-280.08,0.00034371,2]
[393779101,1762977038576,-425.7576315,0.00034418,15]
[393779103,1762977038586,-467.650404,0.0003452,20]
[393779105,1762977038596,-467.650404,0.0003452,20]
[393779108,1762977038606,-467.650404,0.0003452,20]
[393779109,1762977038620,-215.525905,0.0003452,20]
[393779112,1762977038630,-215.525905,0.0003452,20]
[393779114,1762977038641,-215.525905,0.0003452,20]
[393779116,1762977038652,-233.825202,0.0003452,20]
[393779118,1762977038662,-233.825202,0.0003452,20]
[393779119,1762977038672,-153.743889,0.0003452,20]
[393779122,1762977038682,-233.825202,0.0003452,20]
[393779124,1762977038692,-606.310657,0.0003452,20]
[393779126,1762977038702,-606.310657,0.0003452,20]
[393779128,1762977038711,-606.310657,0.0003452,20]
[393779129,1762977038722,-500.0,0.00034611,5]
[393779132,1762977038732,-166.66,0.00034667,30]
[393779133,1762977038742,-1000.0,0.00034763,5]
[393779136,1762977038751,-175.17,0.0003479,2]
[393779138,1762977038762,-3857.41566898,0.00034855,2]
[393779194,1762977040225,-3512.35269322,0.00034855,2]
[393779195,1762977040238,-4053.1797622,0.00034855,2]
[393779196,1762977040320,-6502.5346787,0.00034855,2]
[393779197,1762977040333,-407.89563762,0.00034855,2]
[393779198,1762977040413,-1962.24155928,0.00034855,2]
[393779199,1762977040423,-1000.0,0.00035159,5]
[393779200,1762977040433,-425.7576315,0.0003527,15]
[393779201,1762977040443,-1006.63000051,0.00035311,5]
[393779202,1762977040456,-166.66,0.0003534,30]
[393779203,1762977040466,-369.95064773,0.00035409,3]
[393779204,1762977040481,-1532.42956456,0.00035409,3]
[393779205,1762977040495,-9230.55676691,0.00035409,3]
[393779206,1762977040504,-1158.96,0.00035419,30]
[393779207,1762977040514,-1000.0,0.00035481,2]
[393779208,1762977040523,-280.08,0.0003557,2]
[393779209,1762977040533,-1567.51135845,0.00035707,5]
[393779210,1762977040543,-425.7576315,0.00036123,15]
[393779211,1762977040552,-2604.43,0.00036178,2]
[393779212,1762977040562,-11132.9369792,0.00036237,3]
[393779213,1762977040571,-12104.05188259,0.00036247,2]
[393779214,1762977040586,-3946.00794361,0.00036247,2]
[393779215,1762977040597,-770.00042868,0.00036247,2]
[393779216,1762977040617,-8179.93974512,0.00036247,2]
[393779217,1762977040627,-9932.42478765,0.00036424,4]
[393779218,1762977040638,-5000.0,0.00036434,2]
[393779219,1762977040648,-1000.0,0.00036435,30]
[393779220,1762977040662,-1000.5618557,0.00036435,30]
[393779221,1762977040673,-1000.59037472,0.00036435,30]
[393779222,1762977040683,-1000.0,0.00036435,30]
[393779223,1762977040694,-5000.0,0.00036475,2]
[393779224,1762977040703,-152.0,0.000365,3]
[393779225,1762977040714,-155.2930148,0.0003655,2]
[393779226,1762977040724,-11132.9369792,0.00036588,4]
[393779227,1762977040734,-4499.67,0.00036598,2]
[393779228,1762977040744,-11132.9369792,0.00036601,4]
[393779229,1762977040754,-9932.42478765,0.00036601,4]
[393779230,1762977040764,-25000.0,0.00036611,2]
[393779231,1762977040774,-280.08,0.00036769,2]
[393779232,1762977040784,-9932.42478765,0.00036854,4]
[393779233,1762977040795,-2530.68,0.00036864,2]
[393779234,1762977040804,-425.7576315,0.00036976,15]
[393779235,1762977040814,-4615.76,0.00036991,2]
[393779236,1762977040824,-447.22,0.00037381,2]
[393779237,1762977040834,-150.0,0.00037503,7]
[393779238,1762977040844,-152.0,0.00037583,4]
[393779239,1762977040855,-425.7576315,0.00037829,15]
[393779241,1762977040865,-168.0,0.00037864,2]
[393779243,1762977040874,-500.0,0.00037922,2]
[393779245,1762977040885,-5432.94,0.00037922,2]
[393779247,1762977040895,-175.17,0.00037953,2]
[393779249,1762977040905,-463.41812963,0.00038183,6]
[393779251,1762977040919,-660.73611071,0.000386,2]
[393779253,1762977040928,-529.974941,0.000386,8]
[393779255,1762977040938,-152.0,0.00038666,5]
[393779257,1762977040947,-11132.9369792,0.00038668,4]
[393779259,1762977040958,-6064.69,0.00038678,2]
[393779261,1762977040967,-425.7576315,0.00038681,15]
[393779263,1762977040976,-9932.42478765,0.00038697,4]
[393779265,1762977040986,-1000.0,0.00038707,2]
[393779267,1762977040998,-168.0,0.00038822,2]
[393779269,1762977041008,-168.0,0.00038856,2]
[393779271,1762977041018,-1600.0,0.000389,14]
[393779272,1762977041028,-168.0,0.00038967,2]
[393779273,1762977041037,-3300.0,0.00039,14]
[393779274,1762977041047,-172.09582685,0.00039,2]
[393779275,1762977041057,-5000.0,0.000391,14]
[393779276,1762977041066,-168.0,0.0003919,2]
[393779277,1762977041076,-6700.0,0.000392,14]
[393779278,1762977041086,-11132.9369792,0.0003929,4]
[393779279,1762977041096,-9932.42478765,0.0003929,4]
[393779280,1762977041106,-8300.0,0.000393,14]
[393779281,1762977041115,-500.0,0.0003934,5]
[393779282,1762977041125,-500.0,0.0003934,5]
[393779283,1762977041136,-1600.0,0.000394,14]
[393779284,1762977041146,-280.0,0.00039479,4]
[393779286,1762977041157,-1600.0,0.000395,14]
[393779288,1762977041166,-500.0,0.00039525,5]
[393779290,1762977041176,-425.7576315,0.00039534,15]
[393779291,1762977041185,-1299.0,0.00039597,2]
[393779292,1762977041196,-1600.0,0.000396,14]
[393779293,1762977041206,-696.97,0.00039654,2]
[393779294,1762977041216,-300.0,0.00039697,2]
[393779295,1762977041226,-1600.0,0.000397,14]
[393779296,1762977041235,-1299.0,0.00039719,2]
[393779300,1762977041255,-152.0,0.0003975,6]
[393779302,1762977041266,-168.0,0.00039768,2]
[393779304,1762977041275,-168.0,0.00039776,2]
[393779306,1762977041286,-2291.0,0.000398,14]
[393779308,1762977041296,-1299.0,0.0003982,2]
[393779310,1762977041306,-11132.9369792,0.0003999,4]
[393779312,1762977041316,-19864.8495753,0.0003999,4]
[393779314,1762977041326,-234.5545,0.0004,2]
[393779316,1762977041336,-280.0424,0.0004,2]
[393779318,1762977041345,-442.8,0.0004,14]
[393779320,1762977041356,-316.47033406,0.0004015,2]
[393779322,1762977041366,-11132.9369792,0.00040229,4]
[393779324,1762977041376,-1000.0,0.00040239,2]
[393779326,1762977041387,-10561.87698093,0.00040248,15]
[393779328,1762977041396,-9932.42478765,0.00040254,4]
[393779330,1762977041406,-10561.87698085,0.00040263,15]
[393779332,1762977041415,-11132.9369792,0.00040269,4]
[393779334,1762977041425,-10561.87698085,0.00040279,15]
[393779336,1762977041436,-9932.42478765,0.00040284,4]
[393779338,1762977041446,-2000.0,0.00040293,30]
[393779340,1762977041456,-10561.87698085,0.00040294,15]